bitfinex/quotes_ETHUSD_20240821
["timestamp","ask_amount","ask_price","bid_price","bid_amount"]
[1724246216385,3.87158,2583.0,2582.7,0.55]
[1724246217521,3.87157,2583.0,2582.6,2.4033]
[1724246217674,3.87157,2583.0,2582.4,9.6964]
[1724246217675,3.87178,2582.8,2582.4,9.6964]
[1724246217875,3.87179,2582.8,2582.4,2.3064]
[1724246218480,3.87192,2582.7,2582.4,2.3064]
[1724246218745,3.87206,2582.6,2582.5,0.14886575]
[1724246219084,3.87206,2582.6,2582.0,6.37096]
[1724246219734,3.87223,2582.5,2582.1,0.14915665]
[1724246219876,3.87237,2582.4,2582.1,0.14915665]
[1724246220383,3.87237,2582.4,2582.2,0.1490855]
[1724246220836,3.87237,2582.4,2581.9,2.9752]
[1724246220999,3.87237,2582.4,2582.3,0.14901436]
[1724246221182,3.87223,2582.5,2582.3,0.14901436]
[1724246221498,3.87223,2582.5,2582.4,0.14894323]
[1724246221879,3.87209,2582.6,2581.9,2.9752]
[1724246222079,7.74426,2582.6,2582.4,0.14894323]
[1724246222357,7.74426,2582.6,2582.0,4.42287]
[1724246222494,7.74426,2582.6,2582.5,0.1488721]
[1724246222700,7.74426,2582.6,2582.0,4.42287]
[1724246222935,7.74426,2582.6,2582.5,0.1488721]
[1724246223098,7.74426,2582.6,2582.0,4.42287]
[1724246223432,3.8724,2582.4,2582.0,0.55]
[1724246223656,7.74484,2582.4,2582.0,0.55]
[1724246223813,3.8724,2582.4,2582.1,0.14961455]
[1724246224141,3.87266,2582.2,2582.1,0.14961455]
[1724246224484,3.87266,2582.2,2581.8,2.4989]
[1724246224686,3.87266,2582.2,2582.1,0.14961455]
[1724246224878,3.87253,2582.3,2581.9,0.55]
[1724246225076,3.87253,2582.3,2582.1,0.14961455]
[1724246225335,3.87253,2582.3,2581.9,0.55]
[1724246225634,3.87253,2582.3,2582.2,0.1495434]
[1724246225988,3.87253,2582.3,2581.9,0.55]
[1724246226415,3.87253,2582.3,2582.0,0.14968569]
[1724246226613,7.74516,2582.3,2582.0,0.14968569]
[1724246226820,3.87253,2582.3,2582.0,0.14968569]
[1724246226981,7.74562,2582.1,2582.0,0.14968569]
[1724246227436,3.87315,2581.9,2581.5,2.2673]
[1724246230083,3.87296,2582.0,2581.5,2.2673]
[1724246232511,3.87314,2581.9,2581.3,6.88609]
[1724246232717,2.725653,2582.2,2581.4,0.55]
[1724246232718,3.87349,2581.7,2581.4,0.55]
[1724246233040,4.259933,2582.2,2581.4,0.55]
[1724246233041,2.497,2581.8,2581.4,0.55]
[1724246233335,2.497,2581.8,2581.3,0.55]
[1724246233485,6.37032,2581.8,2581.3,0.55]
[1724246233689,6.37032,2581.8,2581.4,0.15043087]
[1724246233892,3.87344,2581.7,2581.4,0.15043087]
[1724246234785,3.87344,2581.7,2581.2,3.8741]
[1724246234999,3.87344,2581.7,2581.5,0.15035969]
[1724246235200,3.87344,2581.7,2581.2,0.68862]
[1724246235201,7.747,2581.7,2581.2,0.68862]
[1724246235539,3.87344,2581.7,2581.2,0.68862]
[1724246235743,3.87344,2581.7,2581.3,0.15050206]
[1724246236106,3.87344,2581.7,2581.2,0.68862]
[1724246236351,6.37028,2581.8,2581.4,0.15043087]
[1724246236559,3.87299,2582.0,2581.4,2.2621]
[1724246236765,3.87299,2582.0,2581.5,0.70035969]
[1724246237239,3.87299,2582.0,2581.5,4.57404969]
[1724246237438,3.87313,2581.9,2581.5,0.70035969]
[1724246237635,7.735342,2581.9,2581.5,0.70035969]
[1724246238062,6.23273,2581.9,2581.5,0.70035969]
[1724246239871,3.87326,2581.8,2581.5,0.70035969]
[1724246240536,3.87347,2581.7,2581.5,0.15035969]
[1724246240858,3.87357,2581.6,2581.2,2.2914]
[1724246241168,3.87357,2581.6,2581.2,1.81301]
[1724246241461,3.87342,2581.7,2581.2,1.81301]
[1724246241628,3.87342,2581.7,2581.2,5.68709]
[1724246242569,3.87342,2581.7,2581.3,2.2513]
[1724246245361,7.74695,2581.7,2581.3,2.2513]
[1724246245535,3.87342,2581.7,2581.3,2.2513]
[1724246245881,3.87379,2581.5,2581.0,18.23126]
[1724246246169,3.87324,2581.9,2581.4,3.87381]
[1724246246379,3.87324,2581.9,2581.5,0.55]
[1724246247178,7.74645,2581.9,2581.5,0.55]
[1724246247648,3.87336,2581.8,2581.4,0.55]
[1724246247848,3.87336,2581.8,2581.4,1.301649]
[1724246248031,7.74643,2581.9,2581.4,1.301649]
[1724246248234,3.87321,2581.9,2581.4,5.175379]
[1724246248474,3.87321,2581.9,2581.6,2.4514]
[1724246248976,3.87321,2581.9,2581.7,0.15086623]
[1724246250422,3.87277,2582.2,2581.8,0.55]
[1724246250760,3.87277,2582.2,2581.8,0.70074416]
[1724246250992,3.87282,2582.1,2581.8,0.70074416]
[1724246251380,3.87266,2582.2,2581.8,1.47331458]
[1724246252392,3.87266,2582.2,2581.8,0.70074416]
[1724246256882,5.56052,2582.3,2581.8,0.70074416]
[1724246256883,3.8729,2582.1,2581.8,0.70074416]
[1724246257086,3.8729,2582.1,2581.8,0.15074416]
[1724246257087,3.87304,2582.0,2581.8,0.15074416]
[1724246257287,3.87304,2582.0,2581.5,2.3401]
[1724246257599,3.87304,2582.0,2581.9,0.150673]
[1724246257798,3.87312,2581.9,2581.6,0.55]
[1724246258486,3.87298,2582.0,2581.6,0.55]
[1724246259504,6.21448,2582.2,2581.6,4.42355]
[1724246259701,8.968,2582.3,2581.7,3.87331]
[1724246259905,8.968,2582.3,2581.9,2.3107]
[1724246260132,7.28,2582.3,2582.0,0.55]
[1724246260338,10.14888,2582.4,2582.0,0.55]
[1724246260831,5.56056,2582.3,2582.0,0.55]
[1724246261550,3.87267,2582.2,2582.0,0.55]
[1724246261723,3.87267,2582.2,2581.8,0.55]
[1724246261911,3.87267,2582.2,2581.8,1.684702]
[1724246263108,3.87267,2582.2,2581.8,0.35]
[1724246263956,3.87267,2582.2,2581.9,0.15050116]
[1724246265326,5.56052,2582.3,2581.9,0.15050116]
[1724246266267,3.87267,2582.2,2581.9,0.15050116]
[1724246267362,3.87296,2582.0,2581.7,2.3501]
[1724246267705,3.87296,2582.0,2581.8,0.15057232]
[1724246267909,3.87296,2582.0,2581.7,2.3501]
[1724246268110,3.87296,2582.0,2581.9,0.15050116]
[1724246268312,3.87296,2582.0,2581.7,2.3501]
[1724246268524,3.87296,2582.0,2581.9,0.15050116]
[1724246268763,3.87296,2582.0,2581.7,2.3501]
[1724246268959,3.87296,2582.0,2581.9,0.15050116]
[1724246269114,3.87296,2582.0,2581.7,2.3501]
[1724246269457,3.87296,2582.0,2581.9,0.1505139]
[1724246269664,3.87296,2582.0,2581.8,0.15058506]
[1724246269954,3.87296,2582.0,2581.9,0.1505139]
[1724246270104,3.87296,2582.0,2581.7,2.3501]
[1724246270319,3.87296,2582.0,2581.9,0.1505139]
[1724246270558,3.87296,2582.0,2581.7,2.3501]
[1724246270711,3.87296,2582.0,2581.9,0.1505139]
[1724246270913,3.87283,2582.1,2581.7,2.3501]
[1724246271159,4.120495,2582.5,2581.9,0.1505139]
[1724246271461,6.87239,2582.4,2581.9,3.87307]
[1724246271955,4.699595,2582.7,2581.7,8.61141]
[1724246271956,3.87202,2582.7,2582.2,3.87263]
[1724246272160,3.87202,2582.7,2582.2,3.9500755]
[1724246272343,3.872,2582.7,2582.3,0.15013386]
[1724246272511,7.74399,2582.7,2582.3,0.15013386]
[1724246272911,7.74399,2582.7,2582.1,7.98426]
[1724246273110,7.74399,2582.7,2582.4,0.14993548]
[1724246273459,7.74399,2582.7,2582.1,6.37370581]
[1724246273642,7.74399,2582.7,2582.5,0.14986435]
[1724246273964,3.87199,2582.7,2582.6,0.14979323]
[1724246274259,5.55999,2582.7,2582.2,3.87254]
[1724246274458,5.55999,2582.7,2582.6,0.14979323]
[1724246274624,5.55999,2582.7,2582.2,3.87254]
[1724246274962,5.55999,2582.7,2582.3,0.55]
[1724246275129,5.55999,2582.7,2582.3,0.70000661]
[1724246275130,9.43198,2582.7,2582.3,0.70000661]
[1724246275817,5.55999,2582.7,2582.3,0.70000661]
[1724246276017,9.43199,2582.7,2582.3,0.70000661]
[1724246278472,3.87236,2582.4,2582.3,0.15000661]
[1724246279115,3.87296,2582.0,2581.9,7.39]
[1724246279321,1.688,2582.1,2581.6,6.29016]
[1724246279520,3.87274,2582.2,2581.6,11.162666]
[1724246279731,3.87274,2582.2,2581.7,3.87338]
[1724246280120,1.688,2582.3,2581.8,3.87325]
[1724246280457,3.87255,2582.3,2581.8,3.87325]
[1724246280760,3.87255,2582.3,2581.9,2.4477]
[1724246281765,7.74515,2582.3,2581.9,2.4477]
[1724246282247,7.74516,2582.3,2581.8,3.87325]
[1724246282558,7.74516,2582.3,2581.7,6.3569]
[1724246282767,5.56089,2582.1,2581.7,2.4835]
[1724246283125,3.87289,2582.1,2581.7,2.4835]
[1724246283457,10.52131148,2582.3,2581.7,6.3569]
[1724246283870,3.87266,2582.2,2581.7,6.3569]
[1724246284979,4.96066148,2582.3,2581.7,6.3569]
[1724246285286,3.87259,2582.3,2581.7,6.3569]
[1724246285600,7.74521,2582.3,2581.7,6.3569]
[1724246286286,3.87259,2582.3,2581.7,6.3569]
[1724246286434,3.8724,2582.4,2581.9,7.74607]
[1724246286635,6.26542,2582.5,2581.9,3.87303]
[1724246286858,6.26542,2582.5,2582.0,3.87295]
[1724246287078,6.26539,2582.5,2582.0,3.87295]
[1724246287253,10.13769,2582.5,2582.0,3.87295]
[1724246287457,3.87229,2582.5,2582.1,2.4914]
[1724246288488,3.87208,2582.6,2582.1,2.4914]
[1724246288838,3.87224,2582.5,2582.1,2.4914]
[1724246289994,7.74453,2582.5,2582.1,2.4914]
[1724246290534,3.87224,2582.5,2582.1,2.4914]
[1724246290975,7.74454,2582.5,2582.1,2.4914]
[1724246291706,8.86647819,2582.5,2582.1,2.4914]
[1724246293207,3.87238,2582.4,2581.9,6.16439]
[1724246293348,3.87238,2582.4,2582.0,0.55]
[1724246293552,3.87238,2582.4,2582.0,0.70018185]
[1724246298805,3.87238,2582.4,2582.0,0.15018185]
[1724246298960,3.87267,2582.2,2582.0,0.15018185]
[1724246299160,3.87267,2582.2,2581.7,6.87522]
[1724246299460,3.87267,2582.2,2581.8,0.55]
[1724246299667,3.87267,2582.2,2581.9,0.15025301]
[1724246299964,7.74487,2582.4,2581.9,0.15025301]
[1724246300594,3.87262,2582.3,2581.9,0.15025301]
[1724246301308,3.87262,2582.3,2582.0,2.4955]
[1724246301541,3.87262,2582.3,2582.0,2.64568185]
[1724246304998,3.87223,2582.5,2582.1,0.55]
[1724246305321,3.87223,2582.5,2582.2,0.15003956]
[1724246305810,5.041879,2582.7,2582.2,0.15003956]
[1724246305811,3.87197,2582.7,2582.2,4.02262956]
[1724246306115,3.87197,2582.7,2582.3,2.4193]
[1724246306280,3.87197,2582.7,2582.3,2.56928752]
[1724246306477,7.74401,2582.7,2582.3,2.56928752]
[1724246306715,7.74399,2582.7,2582.3,2.56928752]
[1724246307486,7.74397,2582.7,2582.3,2.56928752]
[1724246307881,13.638201,2583.0,2582.3,3.38488457]
[1724246307882,7.7434,2582.9,2582.3,3.38488457]
[1724246308164,3.87153,2583.0,2582.5,3.87214]
[1724246308518,3.87153,2583.0,2582.6,2.45762781]
[1724246310013,3.87163,2582.9,2582.6,2.45762781]
[1724246311056,3.87178,2582.8,2582.6,0.14962781]
[1724246311370,3.87178,2582.8,2582.4,6.20254]
[1724246311670,3.87178,2582.8,2582.7,0.14937859]
[1724246311853,3.87178,2582.8,2582.4,6.20254]
[1724246312054,3.87178,2582.8,2582.7,0.14937859]
[1724246312385,3.87178,2582.8,2582.7,0.14943584]
[1724246312675,3.87178,2582.8,2582.4,6.20254]
[1724246312881,3.87178,2582.8,2582.7,0.14943584]
[1724246313366,3.87178,2582.8,2582.5,0.55]
[1724246313602,3.87161,2582.9,2582.7,0.14943584]
[1724246313727,3.87161,2582.9,2582.6,0.14950695]
[1724246313942,2.335,2583.2,2582.5,0.55]
[1724246314167,2.335,2583.2,2582.7,0.14943584]
[1724246314168,5.55845,2583.1,2582.7,0.14943584]
[1724246314344,5.55845,2583.1,2582.6,4.02155695]
[1724246314546,5.55845,2583.1,2582.8,0.14933929]
[1724246314724,5.55845,2583.1,2582.6,3.87205]
[1724246314926,5.55845,2583.1,2582.9,0.1492491]
[1724246315375,5.55845,2583.1,2583.0,0.149178]
[1724246315584,3.87102,2583.3,2582.9,2.3986]
[1724246315871,3.87102,2583.3,2583.0,0.149178]
[1724246317091,3.87071,2583.5,2583.0,0.149178]
[1724246317092,3.87087,2583.4,2583.0,0.149178]
[1724246317775,3.87104,2583.3,2583.0,0.149178]
[1724246320611,9.4285,2583.5,2583.1,0.55]
[1724246320748,9.42853,2583.5,2583.1,0.69861715]
[1724246320954,9.42851,2583.5,2583.1,0.69861715]
[1724246321989,3.87086,2583.4,2583.1,0.69861715]
[1724246322933,3.87109,2583.3,2583.1,0.14861715]
[1724246323136,3.87109,2583.3,2582.9,3.0986]
[1724246323459,3.87109,2583.3,2583.2,0.14854607]
[1724246323647,3.87109,2583.3,2582.9,3.0986]
[1724246324139,3.87109,2583.3,2583.0,0.14868825]
[1724246327285,3.87118,2583.2,2583.0,0.14868825]
[1724246327668,3.87118,2583.2,2582.6,3.1771]
[1724246327836,3.87118,2583.2,2583.1,0.14842635]
[1724246328039,3.87118,2583.2,2582.7,0.55]
[1724246328040,3.87135,2583.1,2582.7,0.55]
[1724246329394,3.87164,2582.9,2582.7,0.55]
[1724246329571,4.876554,2582.8,2582.2,2.4769]
[1724246329890,3.87199,2582.7,2582.2,2.4769]
[1724246330177,4.876554,2582.8,2582.2,6.34956]
[1724246330385,8.748464,2582.8,2582.2,6.34956]
[1724246330591,4.876554,2582.8,2582.2,6.34956]
[1724246330891,6.25185,2582.6,2582.0,6.92405]
[1724246331046,6.25185,2582.6,2582.1,4.4228]
[1724246331776,2.3433554,2582.7,2582.1,4.4228]
[1724246331989,1.687,2582.7,2582.1,8.29553]
[1724246332470,10.0022,2582.8,2582.1,8.29553]
[1724246333083,10.00221,2582.8,2582.1,9.98253]
[1724246333917,6.35121,2583.0,2582.2,6.24651]
[1724246334117,3.803821,2582.9,2582.3,2.937]
[1724246334410,3.0,2582.9,2582.5,2.3676]
[1724246335198,6.87162,2582.9,2582.5,2.3676]
[1724246336118,3.87155,2583.0,2582.5,2.3676]
[1724246336616,3.87155,2583.0,2582.5,6.23981]
[1724246336827,6.87127,2583.2,2582.6,4.57205]
[1724246336983,3.0,2583.1,2582.6,5.12205]
[1724246337184,3.0,2583.1,2582.6,1.25]
[1724246337381,6.26599,2583.0,2582.6,1.25]
[1724246337579,3.87159,2583.0,2582.6,1.25]
[1724246337784,5.55837,2583.1,2582.6,1.998986]
[1724246337995,3.87124,2583.2,2582.6,5.870956]
[1724246338206,3.0,2583.1,2582.7,2.4591]
[1724246338511,3.87133,2583.1,2582.8,0.69877322]
[1724246339088,7.95244,2583.3,2582.8,1.54665614]
[1724246339089,3.87104,2583.3,2582.8,1.54665614]
[1724246339282,7.74214,2583.3,2582.8,1.54665614]
[1724246339897,3.87104,2583.3,2582.8,1.54665614]
[1724246340108,7.74214,2583.3,2582.8,1.54665614]
[1724246340282,7.74214,2583.3,2582.9,0.95645761]
[1724246340525,3.87117,2583.2,2583.0,0.14863101]
[1724246340728,3.87131,2583.1,2582.8,0.55]
[1724246340905,3.87131,2583.1,2582.7,2.4591]
[1724246341412,3.87117,2583.2,2582.7,2.4591]
[1724246341644,3.87117,2583.2,2582.8,0.55]
[1724246341855,1.687,2583.3,2582.8,1.308109]
[1724246342180,7.74189,2583.4,2582.9,2.2794]
[1724246342363,7.74189,2583.4,2583.0,0.55]
[1724246342861,3.87117,2583.2,2583.0,0.55]
[1724246343265,3.87117,2583.2,2582.6,0.7]
[1724246343266,3.87131,2583.1,2582.6,4.57193]
[1724246343461,3.87131,2583.1,2582.7,3.852903]
[1724246344565,5.55801,2583.3,2582.7,7.724793]
[1724246344566,9.42916,2583.3,2582.7,7.724793]
[1724246345139,3.87117,2583.2,2582.7,7.724793]
[1724246348067,3.87117,2583.2,2582.7,11.596683]
[1724246348263,3.87117,2583.2,2582.7,11.596633]
[1724246348434,7.74214,2583.3,2582.8,1.2296633]
[1724246349669,3.87119,2583.2,2582.8,1.2296633]
[1724246350378,3.87091,2583.4,2583.0,2.4647]
[1724246351870,3.87103,2583.3,2582.8,3.6127633]
[1724246352168,3.87118,2583.2,2582.9,0.55]
[1724246352465,3.87103,2583.3,2582.9,2.3831]
[1724246353222,5.55782,2583.5,2583.0,3.87144]
[1724246353661,9.42863,2583.5,2583.1,0.14837549]
[1724246353868,5.55781,2583.5,2583.1,0.14837549]
[1724246354874,5.55781,2583.5,2582.9,6.25468]
[1724246355073,5.55781,2583.5,2583.2,0.1483044]
[1724246355384,5.55781,2583.5,2582.9,7.491015]
[1724246355385,3.87096,2583.4,2582.9,7.491015]
[1724246355529,3.87096,2583.4,2583.3,0.14823331]
[1724246355876,3.87096,2583.4,2582.9,7.491015]
[1724246356182,3.87096,2583.4,2583.0,0.55]
[1724246356326,3.87096,2583.4,2583.0,0.69844658]
[1724246356781,3.87073,2583.5,2583.0,5.77592974]
[1724246356984,3.0,2583.6,2583.1,2.2675]
[1724246357188,3.0,2583.6,2583.2,0.55]
[1724246357472,6.87063,2583.6,2583.2,0.69821538]
[1724246358266,3.87063,2583.6,2583.2,0.69821538]
[1724246358478,3.87063,2583.6,2583.2,1.88966523]
[1724246358982,7.74128,2583.6,2583.2,1.88966523]
[1724246359185,3.87072,2583.5,2583.2,1.88966523]
[1724246359353,3.87072,2583.5,2583.2,0.69821538]
[1724246360389,2.4411,2583.8,2583.2,0.69821538]
[1724246360390,3.87054,2583.7,2583.2,0.69821538]
[1724246360582,3.87057,2583.6,2583.3,2.2506]
[1724246360934,3.87042,2583.7,2583.4,0.14806687]
[1724246361291,3.87042,2583.7,2583.3,2.2506]
[1724246361627,3.87042,2583.7,2583.4,0.14777444]
[1724246361880,3.87042,2583.7,2583.3,2.2506]
[1724246362385,3.87042,2583.7,2583.4,0.14777444]
[1724246362763,3.87027,2583.8,2583.4,0.14777444]
[1724246363101,3.87028,2583.8,2583.5,0.55]
[1724246363436,3.87028,2583.8,2583.6,0.14753695]
[1724246364083,7.74064,2583.8,2583.6,0.14753695]
[1724246364293,10.982684,2583.7,2583.6,0.14753695]
[1724246364588,3.87074,2583.5,2583.1,2.4312]
[1724246364740,3.87074,2583.5,2583.2,0.55]
[1724246365640,3.87057,2583.6,2583.2,0.55]
[1724246368575,3.87057,2583.6,2583.3,0.14773746]
[1724246368786,3.87057,2583.6,2583.2,0.55]
[1724246368971,3.87057,2583.6,2583.4,0.14766638]
[1724246369576,3.87057,2583.6,2583.5,0.14759531]
[1724246369937,3.87057,2583.6,2583.2,0.55]
[1724246370185,3.87057,2583.6,2583.3,0.14773746]
[1724246370345,3.87057,2583.6,2583.2,0.55]
[1724246370604,3.87057,2583.6,2583.3,0.14773746]
[1724246370784,3.87057,2583.6,2583.2,0.55]
[1724246371127,3.87057,2583.6,2583.4,0.14766638]
[1724246371328,3.87057,2583.6,2583.3,0.14773746]
[1724246371534,6.33822,2583.7,2583.5,0.14759531]
[1724246371698,6.33822,2583.7,2583.4,0.14766638]
[1724246372032,6.33822,2583.7,2583.5,0.14759531]
[1724246372200,6.33822,2583.7,2583.2,4.42116]
[1724246372548,6.33822,2583.7,2583.6,0.14752424]
[1724246372700,3.87037,2583.8,2583.2,6.10809]
[1724246373046,3.87037,2583.8,2583.3,2.3468]
[1724246373215,3.87037,2583.8,2583.3,2.49446753]
[1724246373545,3.87037,2583.8,2583.3,3.35472328]
[1724246373834,3.87037,2583.8,2583.4,3.87086]
[1724246374039,3.87037,2583.8,2583.4,4.01845645]
[1724246376019,3.87037,2583.8,2583.4,0.14759645]
[1724246376330,3.87037,2583.8,2583.4,4.01841645]
[1724246377539,7.74075,2583.8,2583.4,0.14759645]
[1724246377709,3.87043,2583.7,2583.4,0.14759645]
[1724246378434,3.87043,2583.7,2583.2,5.12106]
[1724246378644,3.87043,2583.7,2583.5,0.14752538]
[1724246378806,3.87043,2583.7,2583.3,3.87101]
[1724246378992,3.87043,2583.7,2583.6,0.14745431]
[1724246379187,3.87043,2583.7,2583.3,3.87101]
[1724246379408,5.55728,2583.8,2583.6,0.14745431]
[1724246379589,6.47308564,2583.8,2583.4,0.55]
[1724246379814,5.55728,2583.8,2583.7,0.14738325]
[1724246380009,6.32716,2583.9,2583.4,4.42085]
[1724246380211,4.687,2584.0,2583.4,4.42085]
[1724246380212,6.86999,2584.0,2583.7,0.14738325]
[1724246380529,3.86994,2584.1,2583.6,1.687]
[1724246380755,3.86991,2584.1,2583.8,0.14731219]
[1724246381039,3.86991,2584.1,2583.9,0.1471903]
[1724246381245,3.86991,2584.1,2583.6,5.55749]
[1724246381419,3.86991,2584.1,2584.0,0.14701121]
[1724246381606,3.86991,2584.1,2583.7,0.55]
[1724246381807,3.86991,2584.1,2584.0,0.14701121]
[1724246382018,3.86991,2584.1,2583.7,0.55]
[1724246382240,3.86991,2584.1,2584.0,0.14701121]
[1724246382440,4.643864,2584.1,2583.7,4.4204]
[1724246382646,4.643864,2584.1,2584.0,0.14701121]
[1724246382647,3.86991,2584.1,2584.0,0.14701121]
[1724246382947,3.86991,2584.1,2583.7,4.4204]
[1724246383096,3.86991,2584.1,2584.0,0.14701121]
[1724246383293,3.86991,2584.1,2583.7,4.4204]
[1724246383497,3.86991,2584.1,2584.0,0.14701121]
[1724246384140,3.86991,2584.1,2583.7,4.4204]
[1724246384291,3.86991,2584.1,2584.0,0.14701121]
[1724246384497,3.86991,2584.1,2583.7,4.4204]
[1724246385151,3.86991,2584.1,2583.8,0.1471533]
[1724246385712,3.86991,2584.1,2583.9,0.14708225]
[1724246386015,3.86991,2584.1,2583.7,0.55]
[1724246386207,6.28131,2584.1,2584.0,0.14671251]
[1724246386406,10.15126,2584.1,2583.7,0.55]
[1724246386645,10.15126,2584.1,2584.0,0.14671251]
[1724246386849,10.15126,2584.1,2583.7,0.55]
[1724246387022,6.28131,2584.1,2584.0,0.14671251]
[1724246387230,6.28131,2584.1,2583.7,0.55]
[1724246387407,3.86997,2584.0,2583.7,0.55]
[1724246388508,3.86997,2584.0,2583.6,0.55]
[1724246390008,6.28122,2584.1,2583.6,4.42056]
[1724246390209,6.28122,2584.1,2583.6,5.721957]
[1724246391252,3.86982,2584.1,2583.6,5.721857]
[1724246391856,3.86982,2584.1,2583.7,3.87041]
[1724246392169,3.86967,2584.2,2583.8,0.55]
[1724246393858,3.86967,2584.2,2583.9,2.3042]
[1724246396185,6.14035,2584.4,2583.9,2.98440105]
[1724246396460,6.14035,2584.4,2584.0,0.55]
[1724246396461,5.55645,2584.4,2584.0,0.55]
[1724246396658,5.55645,2584.4,2584.0,4.41993]
[1724246396825,7.28,2584.7,2584.2,2.4488]
[1724246397046,3.35255517,2585.3,2584.3,0.55]
[1724246397047,7.28,2585.0,2584.3,0.55]
[1724246397292,3.86866,2584.9,2584.4,3.86923]
[1724246397478,9.7722,2585.0,2584.4,3.86923]
[1724246397633,13.64075,2585.0,2584.4,3.86923]
[1724246397839,3.86865,2584.9,2584.4,3.86923]
[1724246398137,3.86865,2584.9,2584.3,2.237]
[1724246398138,3.86892,2584.7,2584.3,0.55]
[1724246398699,3.86892,2584.7,2584.4,0.14574225]
[1724246399766,2.2989,2584.6,2584.4,0.14574225]
[1724246399964,6.168,2584.6,2584.4,0.14574225]
[1724246400183,0.942457,2584.7,2584.4,0.14574225]
[1724246400388,5.55577,2584.8,2584.3,4.4195]
[1724246400740,5.55577,2584.8,2584.5,0.14544895]
[1724246400896,3.86898,2584.7,2584.4,0.14551997]
[1724246401095,9.42468,2584.8,2584.6,0.14537794]
[1724246401397,1.182768,2584.7,2584.2,4.41966]
[1724246401596,9.42463,2584.8,2584.2,4.41966]
[1724246401893,3.86907,2584.6,2584.2,0.55]
[1724246402050,9.42467,2584.8,2584.2,4.41964]
[1724246402252,5.55577,2584.8,2584.2,4.41964]
[1724246402774,3.86899,2584.7,2584.2,4.41964]
[1724246403454,2.403,2584.9,2584.5,0.7]
[1724246403455,3.86868,2584.9,2584.5,0.7]
[1724246403799,5.55561,2585.0,2584.6,0.55]
[1724246403997,3.86884,2584.8,2584.3,6.27458]
[1724246404166,2.3105,2584.7,2584.4,0.55]
[1724246405128,6.17942,2584.7,2584.4,0.55]
[1724246405425,6.342251,2584.9,2584.4,6.31388]
[1724246405633,6.342251,2584.9,2584.5,0.55]
[1724246406487,10.210971,2584.9,2584.5,0.55]
[1724246406686,6.342251,2584.9,2584.5,0.55]
[1724246406888,10.210981,2584.9,2584.5,0.55]
[1724246407305,1.2510081,2584.8,2584.2,6.87277]
[1724246407487,3.86894,2584.7,2584.3,0.55]
[1724246408086,9.4244,2584.9,2584.3,4.4195]
[1724246408436,6.16761,2585.0,2584.5,3.86918]
[1724246408581,6.16761,2585.0,2584.6,0.55]
[1724246408786,2.2991,2585.0,2584.6,0.55]
[1724246409032,3.86863,2584.9,2584.6,0.55]
[1724246409584,3.86863,2584.9,2584.3,2.4223]
[1724246409585,6.72795,2584.9,2584.3,2.4223]
[1724246409925,3.86909,2584.6,2584.2,0.7]
[1724246410109,3.86909,2584.6,2584.3,0.55]
[1724246412106,3.86909,2584.6,2584.3,2.9757]
[1724246412316,3.86909,2584.6,2584.3,0.55]
[1724246413927,3.86909,2584.6,2584.4,0.14263588]
[1724246414807,3.86922,2584.5,2584.4,0.14263588]
[1724246415018,10.0186,2584.6,2584.4,0.14263588]
[1724246415850,6.14939,2584.6,2584.4,0.14263588]
[1724246416357,3.86909,2584.6,2584.4,0.14263588]
[1724246418678,3.86894,2584.7,2584.4,0.14263588]
[1724246420663,3.86909,2584.6,2584.4,0.14263588]
[1724246420860,3.86922,2584.5,2584.4,0.14263588]
[1724246424689,15.76076,2584.5,2584.4,0.14263588]
[1724246425042,3.86989,2584.1,2583.6,3.87047]
[1724246425621,3.86989,2584.1,2583.5,9.6812]
[1724246425622,3.86998,2584.0,2583.5,13.55178]
[1724246425822,3.86998,2584.0,2583.5,15.532749]
[1724246426189,3.86998,2584.0,2583.6,0.55]
[1724246427176,7.73946,2584.2,2583.6,4.42049]
[1724246427343,7.73942,2584.2,2583.6,4.42049]
[1724246427485,3.86967,2584.2,2583.7,4.57036]
[1724246427686,3.86967,2584.2,2583.9,2.4901]
[1724246427934,4.687,2584.5,2584.0,6.80694]
[1724246427935,3.86928,2584.5,2584.0,6.80694]
[1724246428238,3.86908,2584.6,2584.1,3.86978]
[1724246428551,3.86908,2584.6,2584.2,3.927272]
[1724246428835,7.73825,2584.6,2584.2,4.06546247]
[1724246428986,3.86908,2584.6,2584.2,4.06546247]
[1724246430738,7.73826,2584.6,2584.2,4.06546247]
[1724246430901,3.86908,2584.6,2584.2,4.06546247]
[1724246431115,3.86908,2584.6,2584.3,0.79352425]
[1724246431331,3.86908,2584.6,2584.4,0.55]
[1724246431724,3.86908,2584.6,2584.5,0.1379774]
[1724246432093,3.86908,2584.6,2584.5,0.18687077]
[1724246432338,7.73821,2584.6,2584.5,0.18687077]
[1724246432636,15.384441,2584.6,2584.5,0.04889337]
[1724246432879,15.384441,2584.6,2583.9,7.39]
[1724246432880,3.86995,2584.1,2583.9,7.39]
[1724246433338,3.86993,2584.1,2583.9,7.39]
[1724246433843,7.73986,2584.1,2583.9,7.39]
[1724246434143,3.86996,2584.0,2583.9,7.39]
[1724246434322,3.86996,2584.0,2583.7,3.0819]
[1724246434666,3.86996,2584.0,2583.8,0.55]
[1724246434937,7.99601,2583.9,2583.4,10.373]
[1724246435238,7.99601,2583.9,2583.4,8.09]
[1724246435239,3.87049,2583.7,2583.4,8.09]
[1724246436413,3.87049,2583.7,2583.5,0.55]
[1724246437337,3.87056,2583.6,2583.5,0.55]
[1724246437539,3.87049,2583.7,2583.3,0.55]